[Event "Croatian-ch Youth U15 2022"]
[Site "Trogir"]
[Date "2022.06.24"]
[Round "5.9"]
[White "Begic, Klara"]
[Black "Buchwald, Svea"]
[Result "1-0"]
[ECO "A11"]
[WhiteElo "1727"]
[BlackElo "1187"]
[Annotator "NA RC"]
[PlyCount "85"]
[EventDate "2022.06.22"]
[EventType "swiss"]
[EventCountry "CRO"]
[SourceTitle "playchess.com"]
[Source "ChessBase"]
[SourceQuality "1"]
[TimeControl "5400+30"]

1. Nf3 {[%emt 0:00:02]} d5 {[%emt 0:00:11]} 2. c4 {[%emt 0:00:06]} c6 {[%emt 0:00:53]} 3. e3 {[%emt 0:00:14]} Nf6 {[%emt 0:00:17]} 4. Be2 {[%emt 0:02:00]} Bf5 {[%emt 0:01:37]} 5. O-O {[%emt 0:02:16]} e6 {[%emt 0:01:48]} 6. d4 {[%emt 0:01:08]} Bb4 {[%emt 0:01:47]} 7. a3 {[%emt 0:00:47]} Ba5 {[%emt 0:00:07]} 8. b4 {[%emt 0:00:11]} Bc7 {[%emt 0:01:08]} 9. Nc3 {[%emt 0:01:01]} O-O {[%emt 0:00:00]} 10. Bb2 {[%emt 0:01:54]} Nbd7 {[%emt 0:02:18]} 11. Rc1 {[%emt 0:04:58]} Ne4 {[%emt 0:10:27]} 12. Nd2 {[%emt 0:04:59]} Ndf6 {[%emt 0:04:08]} 13. Ndxe4 {[%emt 0:03:12]} Nxe4 {[%emt 0:00:12]} 14. Nxe4 {[%emt 0:03:24]} Bxe4 {[%emt 0:00:21]} 15. Bf3 {[%emt 0:15:40]} Qd6 {[%emt 0:03:37]} 16. g3 {[%emt 0:01:00]} f5 {[%emt 0:01:38]} 17. Be2 {[%emt 0:06:01]} Rf6 {[%emt 0:02:15]} 18. c5 {[%emt 0:07:30]} Qe7 {[%emt 0:00:56]} 19. f3 {[%emt 0:00:14]} Bxf3 {[%emt 0:00:36]} 20. Bxf3 {[%emt 0:01:42]} Rg6 {[%emt 0:00:44]} 21. Kf2 {[%emt 0:06:18]} e5 {[%emt 0:03:44]} 22. dxe5 {[%emt 0:00:30]} Bxe5 {[%emt 0:00:12]} 23. Bxe5 {[%emt 0:00:11]} Qxe5 {[%emt 0:00:05]} 24. Qd4 {[%emt 0:00:10]} Re6 {[%emt 0:01:57]} 25. Rc3 Rae8 {[%emt 0:00:30]} 26. a4 g5 {[%emt 0:00:30]} 27. h3 Rh6 {[%emt 0:00:30]} 28. Qxe5 Rxe5 {[%emt 0:00:30]} 29. Bg2 Rhe6 {[%emt 0:00:30]} 30. b5 h5 {[%emt 0:00:30]} 31. Rb1 Kg7 {[%emt 0:00:30]} 32. a5 Kf6 {[%emt 0:00:30]} 33. a6 bxa6 {[%emt 0:00:30]} 34. bxa6 Re7 {[%emt 0:00:30]} 35. Rb7 h4 {[%emt 0:00:30]} 36. gxh4 gxh4 {[%emt 0:00:30]} 37. Rxe7 Rxe7 {[%emt 0:00:30]} 38. Rb3 Re8 {[%emt 0:00:30]} 39. Rb7 Re7 {[%emt 0:00:30]} 40. Kf3 Ke6 {[%emt 0:00:30]} 41. Kf4 Kf6 {[%emt 0:00:30]} 42. Rxe7 Kxe7 {[%emt 0:00:30]} 43. Kxf5 1-0

[Event "Croatian-ch Youth U15 2022"]
[Site "Trogir"]
[Date "2022.06.24"]
[Round "5.10"]
[White "Botica, Lucija"]
[Black "Friscic, Laura"]
[Result "1-0"]
[ECO "B01"]
[WhiteElo "1145"]
[BlackElo "1106"]
[Annotator "NA RC"]
[PlyCount "85"]
[EventDate "2022.06.22"]
[EventType "swiss"]
[EventCountry "CRO"]
[SourceTitle "playchess.com"]
[Source "ChessBase"]
[SourceQuality "1"]
[TimeControl "5400+30"]

1. e4 {[%emt 0:00:01]} d5 {[%emt 0:00:14]} 2. exd5 {[%emt 0:00:07]} Qxd5 {[%emt 0:00:07]} 3. Nc3 {[%emt 0:00:04]} Qd8 {[%emt 0:00:18]} 4. Nf3 {[%emt 0:00:10]} Nf6 {[%emt 0:00:42]} 5. d4 {[%emt 0:00:32]} Bf5 {[%emt 0:01:29]} 6. Bf4 {[%emt 0:03:05]} c6 {[%emt 0:01:34]} 7. Bd3 {[%emt 0:07:12]} Bg4 {[%emt 0:02:25]} 8. Be2 {[%emt 0:00:15]} e6 {[%emt 0:00:33]} 9. Qd3 {[%emt 0:01:28]} Bf5 {[%emt 0:01:38]} 10. Qd2 {[%emt 0:02:39]} Bd6 {[%emt 0:02:12]} 11. Bg5 {[%emt 0:03:59]} h6 {[%emt 0:07:54]} 12. Bh4 {[%emt 0:00:26]} Nbd7 {[%emt 0:00:50]} 13. Bd3 {[%emt 0:06:06]} Bg4 {[%emt 0:05:14]} 14. Ne4 {[%emt 0:02:17]} Nxe4 {[%emt 0:01:38]} 15. Bxe4 {[%emt 0:01:19]} g5 {[%emt 0:03:25]} 16. Bg3 {[%emt 0:01:57]} Bxg3 {[%emt 0:00:43]} 17. hxg3 {[%emt 0:00:06]} Nf6 {[%emt 0:02:51]} 18. Qe3 {[%emt 0:09:01]} Nxe4 {[%emt 0:06:41]} 19. Qxe4 {[%emt 0:00:18]} Bf5 {[%emt 0:00:34]} 20. Qe2 {[%emt 0:03:04]} Qa5+ {[%emt 0:07:20]} 21. Qd2 {[%emt 0:04:40]} Qxd2+ {[%emt 0:00:35]} 22. Kxd2 {[%emt 0:00:08]} O-O-O {[%emt 0:02:25]} 23. c3 {[%emt 0:03:03]} Rh7 24. g4 {[%emt 0:00:30]} Be4 25. Ke3 {[%emt 0:00:30]} Bxf3 26. Kxf3 {[%emt 0:00:30]} Rd5 27. Rae1 {[%emt 0:00:30]} Kd7 28. Re5 {[%emt 0:00:30]} Rxe5 29. dxe5 {[%emt 0:00:30]} c5 30. Ke4 {[%emt 0:00:30]} Ke7 31. f4 {[%emt 0:00:30]} gxf4 32. Kxf4 {[%emt 0:00:30]} f6 33. exf6+ {[%emt 0:00:30]} Kxf6 34. Rxh6+ {[%emt 0:00:30]} Rxh6 35. g5+ {[%emt 0:00:30]} Kg6 36. gxh6 {[%emt 0:00:30]} Kxh6 37. Ke5 {[%emt 0:00:30]} Kg5 38. Kxe6 {[%emt 0:00:30]} Kg4 39. Kd5 {[%emt 0:00:30]} b6 40. Kc6 {[%emt 0:00:30]} Kg3 41. Kb7 {[%emt 0:00:30]} a5 42. Kxb6 {[%emt 0:00:30]} a4 43. Kxc5 {[%emt 0:00:30]} 1-0

[Event "Croatian-ch Youth U15 2022"]
[Site "Trogir"]
[Date "2022.06.24"]
[Round "5.11"]
[White "Savic, Anja"]
[Black "Karij, Petra"]
[Result "0-1"]
[ECO "D40"]
[WhiteElo "1308"]
[BlackElo "1433"]
[Annotator "NA RC"]
[PlyCount "54"]
[EventDate "2022.06.22"]
[EventType "swiss"]
[EventCountry "CRO"]
[SourceTitle "playchess.com"]
[Source "ChessBase"]
[SourceQuality "1"]
[TimeControl "5400+30"]

1. d4 {[%emt 0:00:01]} d5 {[%emt 0:00:07]} 2. c4 {[%emt 0:00:05]} e6 {[%emt 0:00:04]} 3. Nf3 {[%emt 0:00:11]} c5 {[%emt 0:00:05]} 4. e3 {[%emt 0:00:13]} Nf6 {[%emt 0:00:11]} 5. Nc3 {[%emt 0:00:58]} Nc6 {[%emt 0:00:09]} 6. Bd3 {[%emt 0:00:25]} a6 {[%emt 0:00:18]} 7. O-O {[%emt 0:01:08]} dxc4 {[%emt 0:00:05]} 8. Be2 {[%emt 0:03:52]} cxd4 {[%emt 0:02:18]} 9. exd4 {[%emt 0:02:50]} b5 {[%emt 0:03:00]} 10. a3 {[%emt 0:04:29]} Be7 {[%emt 0:01:23]} 11. Be3 {[%emt 0:03:17]} O-O {[%emt 0:00:52]} 12. Rc1 {[%emt 0:07:20]} Bb7 {[%emt 0:03:53]} 13. Qd2 {[%emt 0:01:38]} Na5 {[%emt 0:01:55]} 14. Bd1 {[%emt 0:05:07]} Qc7 {[%emt 0:05:51]} 15. Re1 {[%emt 0:15:23]} Rad8 {[%emt 0:10:11]} 16. Qe2 {[%emt 0:06:47]} Ng4 {[%emt 0:05:39]} 17. Ne5 {[%emt 0:12:03]} Nxe5 {[%emt 0:02:30]} 18. dxe5 {[%emt 0:00:07]} Qxe5 {[%emt 0:02:34]} 19. Bb6 {[%emt 0:00:51]} Qg5 {[%emt 0:00:06]} 20. f3 Qxc1 {[%emt 0:00:30]} 21. Be3 Bc5 {[%emt 0:00:30]} 22. Bxc5 Rd2 {[%emt 0:00:30]} 23. Qe3 Rc8 {[%emt 0:00:30]} 24. Bb4 Qxb2 {[%emt 0:00:30]} 25. Na4 Rxg2+ {[%emt 0:00:30]} 26. Kf1 bxa4 {[%emt 0:00:30]} 27. Bxa5 Rxh2 {[%emt 0:00:30]} 0-1

[Event "Croatian-ch Youth U15 2022"]
[Site "Trogir"]
[Date "2022.06.25"]
[Round "6.1"]
[White "Grgantov, Marin"]
[Black "Colev, Ivor"]
[Result "1/2-1/2"]
[ECO "B23"]
[WhiteElo "2081"]
[BlackElo "1984"]
[Annotator "RC"]
[PlyCount "59"]
[EventDate "2022.06.22"]
[EventType "swiss"]
[EventCountry "CRO"]
[SourceTitle "playchess.com"]
[Source "ChessBase"]
[SourceQuality "1"]
[TimeControl "5400+30"]

1. e4 {[%emt 0:00:03]} c5 {[%emt 0:00:03]} 2. Nc3 {[%emt 0:00:09]} d6 {[%emt 0:00:03]} 3. f4 {[%emt 0:00:08]} Nf6 {[%emt 0:00:03]} 4. Nf3 {[%emt 0:00:08]} Nc6 {[%emt 0:00:03]} 5. Bb5 {[%emt 0:00:06]} Qc7 {[%emt 0:03:45]} 6. O-O {[%emt 0:08:59]} Bg4 {[%emt 0:10:41]} 7. h3 {[%emt 0:17:02]} Bxf3 {[%emt 0:00:32]} 8. Qxf3 {[%emt 0:00:01]} O-O-O {[%emt 0:05:48]} 9. Bxc6 {[%emt 0:00:55]} Qxc6 {[%emt 0:00:11]} 10. d3 {[%emt 0:04:24]} e6 {[%emt 0:01:40]} 11. Bd2 {[%emt 0:06:11]} d5 {[%emt 0:04:07]} 12. Rae1 {[%emt 0:03:27]} Qb6 {[%emt 0:14:11]} 13. e5 {[%emt 0:08:38]} Nd7 {[%emt 0:01:07]} 14. b3 {[%emt 0:05:21]} c4+ {[%emt 0:04:54]} 15. Kh2 {[%emt 0:00:56]} cxd3 {[%emt 0:00:45]} 16. Qxd3 {[%emt 0:00:30]} Kb8 {[%emt 0:05:19]} 17. Be3 {[%emt 0:10:13]} Qc6 {[%emt 0:05:11]} 18. Nb5 {[%emt 0:04:27]} Nc5 {[%emt 0:11:00]} 19. Nd4 {[%emt 0:03:23]} Qd7 {[%emt 0:16:07]} 20. Qe2 {[%emt 0:01:37]} Ne4 {[%emt 0:00:46]} 21. c4 {[%emt 0:04:10]} dxc4 {[%emt 0:04:14]} 22. Qxc4 {[%emt 0:05:18]} Nd2 {[%emt 0:01:48]} 23. Bxd2 {[%emt 0:00:00]} Qxd4 {[%emt 0:00:06]} 24. Qxd4 {[%emt 0:01:19]} Rxd4 {[%emt 0:00:06]} 25. Rd1 {[%emt 0:01:25]} Bc5 {[%emt 0:05:20]} 26. Bc3 {[%emt 0:00:39]} Rxd1 {[%emt 0:00:04]} 27. Rxd1 {[%emt 0:00:01]} Rc8 {[%emt 0:00:11]} 28. Rd7 {[%emt 0:03:26]} Be3 {[%emt 0:01:23]} 29. Bd2 {[%emt 0:00:20]} Bxd2 {[%emt 0:00:12]} 30. Rxd2 {[%emt 0:00:01]} 1/2-1/2

[Event "Croatian-ch Youth U15 2022"]
[Site "Trogir"]
[Date "2022.06.25"]
[Round "6.2"]
[White "Gal, Andrej"]
[Black "Frouth, Vibor"]
[Result "0-1"]
[ECO "A60"]
[WhiteElo "1874"]
[BlackElo "1493"]
[Annotator "NA RC"]
[PlyCount "116"]
[EventDate "2022.06.22"]
[EventType "swiss"]
[EventCountry "CRO"]
[SourceTitle "playchess.com"]
[Source "ChessBase"]
[SourceQuality "1"]
[TimeControl "5400+30"]

1. d4 {[%emt 0:00:06]} Nf6 {[%emt 0:00:04]} 2. c4 {[%emt 0:00:09]} e6 {[%emt 0:00:07]} 3. Nc3 {[%emt 0:00:05]} c5 {[%emt 0:00:17]} 4. d5 {[%emt 0:00:06]} exd5 {[%emt 0:00:04]} 5. cxd5 {[%emt 0:00:04]} d6 {[%emt 0:00:07]} 6. Nf3 {[%emt 0:00:56]} a6 {[%emt 0:00:40]} 7. a4 {[%emt 0:00:22]} Bg4 {[%emt 0:00:20]} 8. Nd2 {[%emt 0:17:48]} h6 {[%emt 0:10:09]} 9. Qc2 {[%emt 0:04:26]} Bh5 {[%emt 0:03:18]} 10. e4 {[%emt 0:06:13]} Bg6 {[%emt 0:02:09]} 11. Bd3 {[%emt 0:01:32]} Nbd7 {[%emt 0:00:57]} 12. Nc4 {[%emt 0:05:36]} Ne5 {[%emt 0:05:28]} 13. Nxe5 {[%emt 0:00:15]} dxe5 {[%emt 0:00:11]} 14. O-O {[%emt 0:00:33]} Bd6 {[%emt 0:00:50]} 15. Bd2 {[%emt 0:03:41]} O-O {[%emt 0:03:35]} 16. Rfe1 {[%emt 0:03:22]} Qc7 {[%emt 0:02:36]} 17. b3 {[%emt 0:02:26]} Nd7 {[%emt 0:11:32]} 18. Nd1 {[%emt 0:03:41]} Rab8 {[%emt 0:01:35]} 19. a5 {[%emt 0:02:58]} Rfc8 {[%emt 0:04:05]} 20. Ne3 {[%emt 0:01:19]} f6 {[%emt 0:01:56]} 21. Nc4 {[%emt 0:00:55]} Be8 {[%emt 0:01:49]} 22. Be2 {[%emt 0:01:08]} Ra8 {[%emt 0:01:29]} 23. Bg4 {[%emt 0:00:32]} Rd8 {[%emt 0:02:57]} 24. Be3 {[%emt 0:02:27]} Bf8 {[%emt 0:05:29]} 25. Red1 {[%emt 0:04:40]} b5 {[%emt 0:04:18]} 26. d6 {[%emt 0:02:07]} Qb8 {[%emt 0:04:09]} (26... Qc6 $16 {was necessary.}) 27. Bxd7 {[%emt 0:00:37]} Bxd7 {[%emt 0:00:15]} 28. Nb6 {[%emt 0:00:09]} Ra7 {[%emt 0:01:18]} 29. Qxc5 {[%emt 0:00:58]} Be6 {[%emt 0:01:40]} 30. Nd5 {[%emt 0:19:01]} Rad7 {[%emt 0:01:52]} 31. Qb6 {[%emt 0:01:47]} Rxd6 {[%emt 0:01:51]} 32. Qxb8 {[%emt 0:00:16]} Rxb8 {[%emt 0:00:08]} 33. Bc5 {[%emt 0:01:58]} Rc6 {[%emt 0:01:48]} 34. Bb6 {[%emt 0:01:46]} Rbc8 {[%emt 0:04:27]} 35. Kf1 {[%emt 0:01:06]} Rc2 {[%emt 0:00:33]} 36. Be3 {[%emt 0:00:46]} Bxd5 {[%emt 0:00:44]} ({Black should play} 36... f5 $17 37. exf5 Bxf5) 37. exd5 {[%emt 0:00:13]} Bd6 {[%emt 0:00:45]} 38. b4 {[%emt 0:07:38]} R2c4 {[%emt 0:01:21]} 39. Bc5 {[%emt 0:01:54]} Bxc5 {[%emt 0:00:32]} 40. bxc5 {[%emt 0:00:04]} R4xc5 {[%emt 0:00:16]} 41. d6 {[%emt 0:00:10]} Rd8 {[%emt 0:00:26]} 42. d7 {[%emt 0:00:11]} Rc6 {[%emt 0:01:36]} 43. Rd2 {[%emt 0:00:43]} (43. Rac1 $17 {might work better.} Rxc1 44. Rxc1 Rxd7 45. Rc6) 43... Kf7 {[%emt 0:00:28]} 44. Rad1 {[%emt 0:00:17]} Ke7 {[%emt 0:00:17]} 45. Ke2 {[%emt 0:00:28]} Rc7 {[%emt 0:00:21]} 46. g3 {[%emt 0:00:17]} Rcxd7 {[%emt 0:00:07]} 47. Rxd7+ {[%emt 0:00:06]} Rxd7 {[%emt 0:00:11]} 48. Rc1 {[%emt 0:00:03]} Kd6 {[%emt 0:00:42]} 49. Kd3 {[%emt 0:00:47]} Rc7 {[%emt 0:00:26]} 50. Rd1 {[%emt 0:00:23]} Rc4 {[%emt 0:00:25]} 51. Ke3+ {[%emt 0:00:31]} Ke7 $19 {[%emt 0:00:10]} 52. f4 {[%emt 0:00:36]} exf4+ {[%emt 0:00:25]} 53. gxf4 {[%emt 0:00:05]} Ra4 {[%emt 0:00:14]} 54. Rc1 {[%emt 0:00:05]} Rxa5 {[%emt 0:00:18]} 55. Rc7+ {[%emt 0:00:05]} Kf8 {[%emt 0:00:09]} 56. Ke4 {[%emt 0:00:21]} b4 {[%emt 0:00:18]} 57. Rb7 {[%emt 0:00:34]} Rb5 {[%emt 0:00:19]} 58. Ra7 {[%emt 0:00:05]} b3 {[%emt 0:00:11]} 0-1

[Event "Croatian-ch Youth U15 2022"]
[Site "Trogir"]
[Date "2022.06.25"]
[Round "6.3"]
[White "Jakovic, Roko"]
[Black "Sundac, Ivano"]
[Result "1/2-1/2"]
[ECO "E20"]
[WhiteElo "1944"]
[BlackElo "1978"]
[Annotator "NA RC"]
[PlyCount "44"]
[EventDate "2022.06.22"]
[EventType "swiss"]
[EventCountry "CRO"]
[SourceTitle "playchess.com"]
[Source "ChessBase"]
[SourceQuality "1"]
[TimeControl "5400+30"]

1. d4 {[%emt 0:00:05]} Nf6 {[%emt 0:00:01]} 2. c4 {[%emt 0:00:17]} e6 {[%emt 0:00:07]} 3. Nc3 {[%emt 0:00:12]} Bb4 {[%emt 0:00:04]} 4. g3 {[%emt 0:00:29]} Bxc3+ {[%emt 0:00:58]} 5. bxc3 {[%emt 0:00:09]} O-O {[%emt 0:00:03]} 6. Bg2 {[%emt 0:00:31]} d6 {[%emt 0:00:27]} 7. Nf3 {[%emt 0:00:44]} Nc6 {[%emt 0:00:04]} 8. c5 {[%emt 0:03:39]} d5 {[%emt 0:04:45]} 9. O-O {[%emt 0:03:18]} Re8 {[%emt 0:02:27]} 10. Bg5 {[%emt 0:07:04]} h6 {[%emt 0:00:41]} 11. Bxf6 {[%emt 0:00:40]} Qxf6 {[%emt 0:00:06]} 12. e4 {[%emt 0:02:16]} b6 {[%emt 0:09:50]} 13. Ne5 {[%emt 0:17:38]} Nxe5 {[%emt 0:02:32]} 14. dxe5 {[%emt 0:00:05]} Qxe5 {[%emt 0:01:37]} 15. exd5 {[%emt 0:00:21]} exd5 {[%emt 0:00:54]} 16. Qxd5 {[%emt 0:13:40]} Qxd5 {[%emt 0:00:13]} 17. Bxd5 {[%emt 0:00:02]} Rb8 {[%emt 0:03:21]} 18. Rfe1 {[%emt 0:02:35]} Be6 {[%emt 0:03:17]} 19. Bxe6 {[%emt 0:01:36]} Rxe6 {[%emt 0:00:30]} 20. Rxe6 {[%emt 0:04:53]} fxe6 {[%emt 0:00:05]} 21. cxb6 {[%emt 0:04:51]} Rxb6 {[%emt 0:00:23]} 22. Rd1 {[%emt 0:02:09]} Rc6 {[%emt 0:00:23]} 1/2-1/2

[Event "Croatian-ch Youth U15 2022"]
[Site "Trogir"]
[Date "2022.06.25"]
[Round "6.4"]
[White "Franc, Borna"]
[Black "Mandaric, Fran"]
[Result "1-0"]
[ECO "B21"]
[WhiteElo "2032"]
[BlackElo "1808"]
[Annotator "RC"]
[PlyCount "65"]
[EventDate "2022.06.22"]
[EventType "swiss"]
[EventCountry "CRO"]
[SourceTitle "playchess.com"]
[Source "ChessBase"]
[SourceQuality "1"]
[TimeControl "5400+30"]

1. e4 {[%emt 0:00:01]} c5 {[%emt 0:00:04]} 2. d4 {[%emt 0:00:03]} cxd4 {[%emt 0:00:06]} 3. c3 {[%emt 0:00:03]} d3 {[%emt 0:00:09]} 4. Bxd3 {[%emt 0:00:04]} Nc6 {[%emt 0:00:04]} 5. c4 {[%emt 0:00:04]} g6 {[%emt 0:01:04]} 6. Nf3 {[%emt 0:00:13]} Bg7 {[%emt 0:00:10]} 7. O-O {[%emt 0:00:06]} d6 {[%emt 0:00:07]} 8. h3 {[%emt 0:00:31]} Nf6 {[%emt 0:00:16]} 9. Nc3 {[%emt 0:00:05]} O-O {[%emt 0:00:15]} 10. Be3 {[%emt 0:00:04]} b6 {[%emt 0:03:21]} 11. Rc1 {[%emt 0:01:13]} Bb7 {[%emt 0:00:16]} 12. Qd2 {[%emt 0:04:39]} Rc8 {[%emt 0:06:02]} 13. b3 {[%emt 0:00:09]} Nd7 {[%emt 0:09:32]} 14. Bh6 {[%emt 0:06:35]} Nde5 {[%emt 0:17:57]} 15. Be2 {[%emt 0:12:59]} Nxf3+ {[%emt 0:11:02]} 16. Bxf3 {[%emt 0:00:05]} Nd4 {[%emt 0:01:56]} 17. Bg4 {[%emt 0:00:07]} Bxh6 {[%emt 0:00:08]} 18. Qxh6 {[%emt 0:00:06]} f5 {[%emt 0:00:21]} 19. exf5 {[%emt 0:00:58]} Nxf5 {[%emt 0:00:26]} 20. Qd2 {[%emt 0:06:42]} Qd7 {[%emt 0:13:55]} 21. Rfe1 {[%emt 0:04:30]} Rce8 {[%emt 0:00:43]} 22. Qg5 {[%emt 0:12:36]} Kg7 {[%emt 0:03:04]} 23. Nd5 {[%emt 0:21:44]} e6 {[%emt 0:09:56]} 24. Nf4 {[%emt 0:00:06]} Qf7 {[%emt 0:00:59]} 25. Bxf5 {[%emt 0:00:34]} exf5 {[%emt 0:00:25]} 26. Qg3 {[%emt 0:01:17]} Re5 {[%emt 0:06:25]} 27. Qc3 {[%emt 0:17:34]} Rfe8 {[%emt 0:03:35]} 28. Nd3 {[%emt 0:00:46]} Qf6 {[%emt 0:01:06]} 29. Nxe5 {[%emt 0:00:07]} dxe5 {[%emt 0:00:04]} 30. Rcd1 {[%emt 0:01:07]} Qc6 {[%emt 0:02:35]} 31. Rd5 {[%emt 0:00:44]} Kh6 {[%emt 0:02:44]} 32. Rexe5 {[%emt 0:00:17]} Qf6 {[%emt 0:00:36]} 33. Qd2+ {[%emt 0:00:09]} 1-0

[Event "Croatian-ch Youth U15 2022"]
[Site "Trogir"]
[Date "2022.06.25"]
[Round "6.5"]
[White "Rautner, Fran"]
[Black "Bunic, Emanuel"]
[Result "1/2-1/2"]
[ECO "C95"]
[WhiteElo "1753"]
[BlackElo "1941"]
[Annotator "RC"]
[PlyCount "53"]
[EventDate "2022.06.22"]
[EventType "swiss"]
[EventCountry "CRO"]
[SourceTitle "playchess.com"]
[Source "ChessBase"]
[SourceQuality "1"]
[TimeControl "5400+30"]

1. e4 {[%emt 0:04:10]} e5 {[%emt 0:00:07]} 2. Nf3 {[%emt 0:00:18]} Nc6 {[%emt 0:00:08]} 3. Bb5 {[%emt 0:00:16]} a6 {[%emt 0:00:17]} 4. Ba4 {[%emt 0:00:11]} Nf6 {[%emt 0:00:17]} 5. O-O {[%emt 0:00:21]} Be7 {[%emt 0:00:14]} 6. Re1 {[%emt 0:00:31]} b5 {[%emt 0:00:10]} 7. Bb3 {[%emt 0:00:06]} d6 {[%emt 0:00:05]} 8. c3 {[%emt 0:00:31]} O-O {[%emt 0:00:17]} 9. h3 {[%emt 0:01:51]} Nb8 {[%emt 0:00:33]} 10. d4 {[%emt 0:01:39]} Nbd7 {[%emt 0:00:18]} 11. Bc2 {[%emt 0:02:37]} Bb7 {[%emt 0:02:07]} 12. Nbd2 {[%emt 0:00:40]} Re8 {[%emt 0:00:22]} 13. Nf1 {[%emt 0:00:34]} Bf8 {[%emt 0:00:14]} 14. Ng3 {[%emt 0:01:23]} g6 {[%emt 0:00:25]} 15. a4 {[%emt 0:07:33]} c5 {[%emt 0:01:46]} 16. d5 {[%emt 0:01:18]} c4 {[%emt 0:00:30]} 17. Nh2 {[%emt 0:10:09]} Nc5 {[%emt 0:09:09]} 18. Bg5 {[%emt 0:05:28]} h6 {[%emt 0:01:00]} 19. Be3 {[%emt 0:00:56]} Bg7 {[%emt 0:04:43]} 20. Qd2 {[%emt 0:06:56]} h5 {[%emt 0:04:21]} 21. Bg5 {[%emt 0:13:48]} Qc7 {[%emt 0:10:07]} 22. Nf3 {[%emt 0:01:24]} Nh7 {[%emt 0:07:40]} 23. Be3 Rf8 {[%emt 0:06:34]} 24. Ra3 {[%emt 0:01:53]} Nf6 {[%emt 0:12:37]} 25. Bh6 {[%emt 0:02:30]} Nh7 {[%emt 0:07:05]} 26. Be3 Nf6 {[%emt 0:00:23]} 27. Bh6 {[%emt 0:00:10]} 1/2-1/2

[Event "Croatian-ch Youth U15 2022"]
[Site "Trogir"]
[Date "2022.06.25"]
[Round "6.6"]
[White "Kos, Nikola"]
[Black "Zadro, Matej"]
[Result "0-1"]
[ECO "A00"]
[WhiteElo "1523"]
[BlackElo "1861"]
[Annotator "NA RC"]
[PlyCount "56"]
[EventDate "2022.06.22"]
[EventType "swiss"]
[EventCountry "CRO"]
[SourceTitle "playchess.com"]
[Source "ChessBase"]
[SourceQuality "1"]
[TimeControl "5400+30"]

1. g3 {[%emt 0:00:03]} e5 {[%emt 0:01:51]} 2. Bg2 {[%emt 0:00:41]} d5 {[%emt 0:00:04]} 3. d3 {[%emt 0:00:06]} Nc6 {[%emt 0:00:03]} 4. e3 {[%emt 0:00:34]} Be6 {[%emt 0:00:49]} 5. Ne2 {[%emt 0:00:14]} Nf6 {[%emt 0:06:58]} 6. a3 {[%emt 0:02:11]} a5 {[%emt 0:05:36]} 7. O-O {[%emt 0:00:20]} Qd7 {[%emt 0:00:20]} 8. Bd2 {[%emt 0:06:21]} Bh3 {[%emt 0:18:49]} 9. f3 {[%emt 0:12:50]} Bc5 {[%emt 0:23:22]} 10. Kh1 {[%emt 0:04:42]} O-O {[%emt 0:08:01]} 11. Nbc3 {[%emt 0:03:28]} Bxg2+ {[%emt 0:00:40]} 12. Kxg2 {[%emt 0:00:22]} Rad8 {[%emt 0:07:53]} 13. Rb1 {[%emt 0:10:55]} Ba7 {[%emt 0:04:02]} 14. Qe1 {[%emt 0:02:20]} d4 {[%emt 0:01:24]} 15. exd4 {[%emt 0:00:25]} exd4 {[%emt 0:00:08]} 16. Ne4 {[%emt 0:09:03]} Nd5 {[%emt 0:00:14]} 17. Nf4 {[%emt 0:08:16]} Ne3+ {[%emt 0:03:15]} 18. Bxe3 {[%emt 0:01:02]} dxe3 {[%emt 0:00:02]} 19. c3 {[%emt 0:00:40]} h6 {[%emt 0:07:41]} 20. g4 {[%emt 0:04:02]} f5 {[%emt 0:01:15]} 21. gxf5 {[%emt 0:04:06]} Qxf5 {[%emt 0:00:23]} 22. Ne2 {[%emt 0:01:02]} Rxd3 {[%emt 0:01:50]} 23. Qg3 {[%emt 0:01:20]} Ne5 {[%emt 0:01:08]} 24. Rbe1 {[%emt 0:01:56]} Nxf3 {[%emt 0:00:36]} 25. Qxf3 {[%emt 0:04:19]} Qg6+ {[%emt 0:00:15]} 26. Qg3 {[%emt 0:03:44]} Qxe4+ $19 {[%emt 0:00:08]} 27. Kg1 {[%emt 0:00:03]} Rf2 {[%emt 0:02:50]} 28. Qh3 {[%emt 0:01:34]} Rd2 {[%emt 0:01:10]} 0-1

[Event "Croatian-ch Youth U15 2022"]
[Site "Trogir"]
[Date "2022.06.25"]
[Round "6.7"]
[White "Tomljanovic, Ivano"]
[Black "Konjevic, Nikola"]
[Result "1-0"]
[ECO "B00"]
[WhiteElo "1844"]
[BlackElo "1708"]
[Annotator "NA RC"]
[PlyCount "97"]
[EventDate "2022.06.22"]
[EventType "swiss"]
[EventCountry "CRO"]
[SourceTitle "playchess.com"]
[Source "ChessBase"]
[SourceQuality "1"]
[TimeControl "5400+30"]

1. d4 {[%emt 0:00:05]} b5 {[%emt 0:00:03]} 2. e4 {[%emt 0:00:17]} Bb7 {[%emt 0:00:02]} 3. Bd3 {[%emt 0:01:38]} Nf6 {[%emt 0:02:56]} 4. Qe2 {[%emt 0:01:03]} a6 {[%emt 0:00:07]} 5. Nf3 {[%emt 0:00:56]} e6 {[%emt 0:00:06]} 6. c3 {[%emt 0:00:33]} Be7 {[%emt 0:00:25]} 7. Bf4 {[%emt 0:00:42]} c5 {[%emt 0:01:03]} 8. O-O {[%emt 0:01:57]} Nc6 {[%emt 0:04:58]} 9. Nbd2 $14 {[%emt 0:01:33]} cxd4 {[%emt 0:19:24]} 10. cxd4 {[%emt 0:00:19]} Nb4 {[%emt 0:00:18]} 11. Rfe1 {[%emt 0:02:45]} Nxd3 {[%emt 0:00:52]} 12. Qxd3 {[%emt 0:00:08]} d5 {[%emt 0:03:41]} 13. e5 {[%emt 0:02:08]} Ne4 {[%emt 0:01:43]} 14. Nf1 {[%emt 0:09:14]} O-O {[%emt 0:06:40]} 15. N3d2 {[%emt 0:03:24]} Rc8 {[%emt 0:17:31]} 16. Nb3 {[%emt 0:01:14]} h6 {[%emt 0:03:44]} 17. f3 {[%emt 0:02:49]} Ng5 {[%emt 0:00:16]} 18. Ng3 {[%emt 0:01:40]} Qb6 {[%emt 0:02:11]} 19. Qd2 {[%emt 0:02:43]} b4 {[%emt 0:04:56]} 20. Nh5 {[%emt 0:01:32]} f6 {[%emt 0:03:45]} 21. h4 {[%emt 0:03:15]} Nf7 {[%emt 0:03:39]} 22. exf6 {[%emt 0:05:18]} Bxf6 {[%emt 0:01:14]} 23. Nxf6+ {[%emt 0:00:28]} gxf6 {[%emt 0:00:01]} 24. Bxh6 {[%emt 0:00:20]} Nxh6 {[%emt 0:01:09]} 25. Qxh6 {[%emt 0:00:08]} Rf7 {[%emt 0:00:16]} 26. Re2 {[%emt 0:14:41]} Rc6 {[%emt 0:07:52]} 27. Qg6+ {[%emt 0:03:16]} Kf8 {[%emt 0:00:18]} 28. Rae1 {[%emt 0:01:45]} e5 {[%emt 0:01:57]} 29. Nc5 {[%emt 0:03:44]} Rxc5 {[%emt 0:02:07]} 30. dxc5 {[%emt 0:00:40]} Qxc5+ {[%emt 0:00:02]} 31. Kh1 {[%emt 0:04:28]} Qd4 {[%emt 0:07:37]} 32. Qh6+ {[%emt 0:04:38]} Kg8 {[%emt 0:02:49]} 33. f4 {[%emt 0:07:18]} e4 {[%emt 0:00:39]} 34. Qg6+ {[%emt 0:02:04]} Kf8 {[%emt 0:00:01]} 35. h5 {[%emt 0:01:46]} f5 {[%emt 0:01:54]} 36. Qd6+ {[%emt 0:01:15]} Kg8 {[%emt 0:00:03]} 37. Re3 {[%emt 0:01:47]} Qf6 {[%emt 0:00:57]} 38. Rg3+ {[%emt 0:02:00]} Kh7 {[%emt 0:00:24]} 39. Qxf6 {[%emt 0:00:52]} Rxf6 {[%emt 0:00:00]} 40. Rc1 {[%emt 0:00:30]} Rc6 {[%emt 0:01:43]} 41. Rxc6 {[%emt 0:02:40]} Bxc6 {[%emt 0:00:01]} 42. Rg6 {[%emt 0:01:27]} Bb5 {[%emt 0:01:10]} 43. Rd6 {[%emt 0:00:51]} e3 {[%emt 0:00:54]} 44. Kg1 {[%emt 0:01:05]} e2 {[%emt 0:00:31]} 45. Kf2 {[%emt 0:00:32]} Bd3 {[%emt 0:00:30]} 46. Rxd5 {[%emt 0:00:32]} Bc4 {[%emt 0:00:12]} 47. Rxf5 {[%emt 0:00:32]} Bxa2 {[%emt 0:00:36]} 48. Kxe2 {[%emt 0:00:22]} Kh6 {[%emt 0:00:34]} 49. g4 {[%emt 0:00:40]} 1-0